bitfinex-derivatives/quotes_SOLF0:USTF0_20220110
["timestamp","ask_amount","ask_price","bid_price","bid_amount"]
[1641807819677,2.0,141.48,141.47,13.19494675]
[1641807819977,34.3465,141.53,141.47,9.19494675]
[1641807820176,34.3465,141.53,141.48,1.766]
[1641807820380,4.00321517,141.52,141.48,2.56694675]
[1641807820778,4.00321517,141.52,141.49,0.80094675]
[1641807825181,8.00321517,141.52,141.49,0.80094675]
[1641807825381,4.00321517,141.52,141.49,0.80094675]
[1641807825582,4.00321517,141.51,141.49,0.80094675]
[1641807825781,11.38621517,141.51,141.49,4.675e-05]
[1641807826181,7.383,141.51,141.44,36.7421]
[1641807826982,4.00387365,141.5,141.45,0.80077473]
[1641807827984,4.00387365,141.51,141.45,0.80077473]
[1641807828383,4.00387365,141.49,141.45,0.80077473]
[1641807828783,4.00387365,141.51,141.45,0.80077473]
[1641807828983,4.00387365,141.51,141.46,7.06539019]
[1641807829182,4.00387365,141.51,141.46,8.83139019]
[1641807829584,4.00387365,141.51,141.47,0.80077473]
[1641807835793,4.00387365,141.51,141.48,1.766]
[1641807835994,4.00387365,141.51,141.48,8.394]
[1641807836593,4.00387365,141.51,141.49,0.80077473]
[1641807842603,4.00387365,141.51,141.47,0.80077473]
[1641807845509,32.1753,141.58,141.5,7.06289508]
[1641807845710,32.1753,141.58,141.51,1.766]
[1641807845910,32.1753,141.58,141.51,5.766]
[1641807846110,30.1753,141.58,141.51,1.766]
[1641807846811,4.00190689,141.57,141.52,1.44135853]
[1641807849615,6.00190689,141.57,141.52,1.44135853]
[1641807850214,4.00190689,141.56,141.52,1.44135853]
[1641807852315,10.62190689,141.56,141.51,1.44135853]
[1641807852718,14.62190689,141.56,141.49,1.44135853]
[1641807852916,4.00190689,141.55,141.49,1.44135853]
[1641807853218,37.01490689,141.55,141.49,1.44135853]
[1641807854117,4.00190689,141.54,141.49,1.44135853]
[1641807857520,4.00190689,141.54,141.51,7.06289508]
[1641807857721,33.013,141.55,141.51,7.06289508]
[1641807858322,33.013,141.55,141.52,1.44135853]
[1641807859022,4.002007,141.54,141.52,1.44135853]
[1641807861930,4.002007,141.54,141.52,5.44135853]
[1641807862129,2.0,141.56,141.53,1.766]
[1641807862329,2.0,141.56,141.53,11.011]
[1641807862628,2.0,141.56,141.54,1.44135853]
[1641807862832,2.0,141.56,141.55,1.766]
[1641807863531,2.0,141.56,141.55,3.20735853]
[1641807863830,2.0,141.56,141.55,1.44135853]
[1641807865231,6.00104138,141.56,141.55,1.44135853]
[1641807865633,6.00104138,141.56,141.54,1.44135853]
[1641807866033,2.0,141.56,141.54,1.44135853]
[1641807875948,5.64913832,141.62,141.54,5.44135853]
[1641807876149,35.0916,141.62,141.55,1.764]
[1641807876349,35.0916,141.62,141.55,5.764]
[1641807876548,35.0916,141.62,141.55,3.20535853]
[1641807876549,4.00036763,141.61,141.55,3.20535853]
[1641807876749,2.00036763,141.61,141.58,4.0]
[1641807876949,8.13162338,141.67,141.59,8.82290658]
[1641807877148,4.0,141.69,141.59,8.82290658]
[1641807878850,3.99965091,141.68,141.6,2.27929494]
[1641807879051,3.99965091,141.68,141.61,1.764]
[1641807879250,3.99965091,141.68,141.61,9.129]
[1641807879750,3.99965091,141.68,141.62,2.27929494]
[1641807880152,3.99965091,141.68,141.63,1.764]
[1641807880351,3.99965091,141.68,141.62,2.27929494]
[1641807880552,3.99965091,141.68,141.64,2.27929494]
[1641807880750,3.99965091,141.68,141.64,9.85529494]
[1641807880950,3.99965091,141.68,141.64,7.576]
[1641807881451,3.99965091,141.68,141.65,2.27929494]
[1641807881650,7.99965091,141.68,141.65,2.27929494]
[1641807882051,3.99965091,141.67,141.65,2.27929494]
[1641807882450,3.99965091,141.67,141.64,7.576]
[1641807883251,3.99965091,141.68,141.65,2.27888394]
[1641807883652,3.99965091,141.68,141.61,9.129]
[1641807884154,3.99965091,141.68,141.62,2.27896181]
[1641807885554,4.0,141.64,141.62,6.181e-05]
[1641807885756,6.286,141.64,141.62,6.181e-05]
[1641807886354,6.286,141.64,141.56,1.764]
[1641807886755,3.99987642,141.63,141.57,2.25690539]
[1641807886956,3.99987642,141.63,141.58,1.764]
[1641807887754,3.99987642,141.64,141.59,2.25690539]
[1641807888554,3.99987642,141.64,141.59,8.355]
[1641807889159,3.99987642,141.64,141.6,2.25690539]
[1641807889355,3.99987642,141.64,141.6,4.02090539]
[1641807889956,42.57277642,141.67,141.61,2.25690539]
[1641807890357,3.99987642,141.66,141.61,2.25690539]
[1641807891859,7.99987642,141.66,141.61,2.25690539]
[1641807892462,3.99987642,141.65,141.61,2.25690539]
[1641807893262,3.99987642,141.66,141.6,2.25690539]
[1641807893463,3.99987642,141.66,141.6,4.02090539]
[1641807893862,3.99987642,141.66,141.61,2.25690539]
[1641807894565,3.99987642,141.66,141.62,2.25690539]
[1641807895166,3.99987642,141.66,141.6,1.764]
[1641807895466,3.99987642,141.66,141.61,1.80104056]
[1641807896269,13.64732357,141.66,141.61,1.80104056]
[1641807896468,4.0,141.65,141.6,1.764]
[1641807896669,4.0,141.65,141.56,1.764]
[1641807896870,3.99987642,141.64,141.56,1.764]
[1641807897370,3.99987642,141.64,141.57,1.80149872]
[1641807899875,3.99987642,141.65,141.57,1.80149872]
[1641807900476,7.99987642,141.65,141.57,1.80149872]
[1641807900676,4.0,141.61,141.57,1.80149872]
[1641807900982,9.304,141.61,141.53,1.764]
[1641807901178,34.4219,141.6,141.52,1.764]
[1641807901579,4.0,141.58,141.52,1.764]
[1641807901780,4.0,141.56,141.52,1.764]
[1641807901977,4.0,141.56,141.51,7.06264567]
[1641807902177,4.0,141.56,141.49,1.766]
[1641807902377,4.0019996,141.55,141.53,1.78517092]
[1641807902579,16.6969996,141.55,141.53,1.78517092]
[1641807902779,16.6969996,141.55,141.5,7.092e-05]
[1641807903180,8.695,141.55,141.47,7.06464147]
[1641807903381,8.695,141.55,141.47,11.06464147]
[1641807903581,8.695,141.55,141.48,1.766]
[1641807903980,4.00183682,141.54,141.49,1.41014677]
[1641807904181,4.00183682,141.54,141.5,1.766]
[1641807904581,8.00183682,141.54,141.5,1.766]
[1641807904783,4.00183682,141.56,141.51,1.41014677]
[1641807905384,8.00183682,141.56,141.51,1.41014677]
[1641807905584,4.00183682,141.56,141.51,1.41014677]
[1641807905885,4.00183682,141.56,141.49,1.41014677]
[1641807906086,4.00183682,141.56,141.52,1.41014677]
[1641807906686,4.00183682,141.56,141.49,1.41014677]
[1641807907686,8.00183682,141.56,141.49,1.41014677]
[1641807908186,4.00183682,141.55,141.49,1.41014677]
[1641807909687,4.0,141.54,141.49,1.41014677]
[1641807910287,4.00183682,141.53,141.49,1.41014677]
[1641807911789,4.00183682,141.55,141.48,1.41014677]
[1641807911990,4.00183682,141.52,141.5,1.41014677]
[1641807912592,5.65218328,141.54,141.51,1.41014677]
[1641807912992,4.00183682,141.53,141.52,1.41014677]
[1641807915701,6.00183682,141.53,141.52,1.41014677]
[1641807917802,6.00183682,141.53,141.47,7.06464147]
[1641807918200,2.0,141.53,141.47,7.06464147]
[1641807918800,4.0,141.5,141.47,7.06464147]
[1641807919001,9.7,141.5,141.47,7.06464147]
[1641807919201,9.7,141.5,141.48,0.80054474]
[1641807919402,5.7,141.5,141.48,0.80054474]
[1641807919801,9.7,141.5,141.48,0.80054474]
[1641807920002,5.7,141.5,141.48,0.80054474]
[1641807921202,5.65306468,141.52,141.48,0.80054474]
[1641807921604,4.00272414,141.51,141.48,0.80054474]
[1641807922405,8.00272414,141.51,141.48,0.80054474]
[1641807923007,4.00272414,141.5,141.48,0.80054474]
[1641807924507,4.00272414,141.51,141.48,0.80054474]
[1641807924707,4.00272414,141.51,141.48,8.91254474]
[1641807925407,4.00272414,141.51,141.49,0.80054474]
[1641807926209,4.00272414,141.51,141.48,0.80054474]
[1641807929709,4.00272414,141.52,141.48,0.80054474]
[1641807931911,4.00272414,141.52,141.48,6.67654474]
[1641807932613,4.00272414,141.52,141.49,0.80054474]
[1641807937818,4.00272414,141.52,141.48,0.80054474]
[1641807943424,9.65583298,141.52,141.48,0.80054474]
[1641807943627,13.65583298,141.52,141.48,0.80054474]
[1641807943827,8.00272414,141.51,141.48,0.80054474]
[1641807944225,4.00272414,141.51,141.48,0.80054474]
[1641807944627,4.00272414,141.5,141.48,0.80054474]
[1641807944826,12.71072414,141.5,141.48,0.80054474]
[1641807945027,8.708,141.5,141.48,0.80054474]
[1641807949032,4.0,141.49,141.48,0.80054474]
[1641807949233,4.0,141.49,141.43,7.0666384]
[1641807949534,4.0,141.48,141.43,7.0666384]
[1641807950736,4.00361011,141.47,141.44,0.80072202]
[1641807950935,11.51761011,141.47,141.44,0.80072202]
[1641807951636,7.514,141.47,141.44,0.80072202]
[1641807955039,4.00374108,141.46,141.44,0.80072202]
[1641807955840,7.514,141.47,141.44,0.80072202]
[1641807956040,4.0,141.48,141.44,0.80072202]
[1641807956741,4.00372524,141.47,141.44,0.80072202]
[1641807956942,11.14572524,141.47,141.44,0.80072202]
[1641807957642,7.142,141.47,141.44,0.80072202]
[1641807960544,11.142,141.47,141.44,0.80072202]
[1641807962145,4.0,141.45,141.44,0.80072202]
[1641807962346,9.65600409,141.45,141.39,7.0688863]
[1641807962547,4.0,141.43,141.42,0.80093403]
[1641807962746,11.314,141.43,141.42,0.80093403]
[1641807962948,16.97070382,141.43,141.39,7.0688863]
[1641807963147,4.0,141.42,141.39,7.0688863]
[1641807963749,4.0,141.42,141.4,0.80099966]
[1641807964552,4.0,141.41,141.4,0.80099966]
[1641807964850,9.65731059,141.41,141.39,7.0688863]
[1641807965053,4.0,141.4,141.39,7.0688863]
[1641807965254,11.514,141.4,141.39,7.0688863]
[1641807965454,11.514,141.4,141.35,32.4733]
[1641807965654,7.514,141.4,141.35,32.4733]
[1641807966155,11.514,141.4,141.35,32.4733]
[1641807966356,11.514,141.4,141.36,0.80111956]
[1641807966758,4.0,141.39,141.36,0.80111956]
[1641807966956,11.514,141.4,141.36,0.80111956]
[1641807968357,8.00541119,141.39,141.36,0.80111956]
[1641807968758,4.00541119,141.38,141.33,34.01661956]
[1641807969159,4.00541119,141.38,141.34,0.80111956]
[1641807969761,8.00541119,141.38,141.34,0.80111956]
[1641807969960,4.0,141.37,141.34,0.80111956]
[1641807970163,10.444,141.37,141.34,0.80111956]
[1641807970761,4.0,141.36,141.34,0.80111956]
[1641807971164,10.444,141.37,141.34,0.80111956]
[1641807972365,6.444,141.37,141.34,0.80111956]
[1641807972865,4.0,141.37,141.34,0.80111956]
[1641807973264,40.40577772,141.39,141.34,0.80111956]
[1641807975165,44.40577772,141.39,141.34,0.80111956]
[1641807975367,4.0,141.38,141.34,0.80111956]
[1641807975768,44.40577772,141.39,141.34,0.80111956]
[1641807975967,40.40577772,141.39,141.34,0.80111956]
[1641807976168,2.0,141.37,141.34,0.80111956]
[1641807977468,2.0,141.37,141.35,4.0]
[1641807977669,6.78752377,141.44,141.36,5.768]
[1641807977867,4.0,141.45,141.36,5.768]
[1641807978068,35.6347,141.46,141.41,2.0]
[1641807978267,4.00483843,141.43,141.41,10.842]
[1641807978668,4.00483843,141.45,141.42,0.80111956]
[1641807980471,2.0,141.44,141.42,0.80111956]
[1641807980673,4.00483843,141.45,141.42,0.80111956]
[1641807981371,6.00483843,141.45,141.42,0.80111956]
[1641807981571,2.0,141.44,141.42,0.80111956]
[1641807981972,6.00483843,141.43,141.38,0.80111956]
[1641807982171,4.00483843,141.43,141.38,0.80111956]
[1641807982574,4.00483843,141.42,141.38,0.80111956]
[1641807982873,4.00483843,141.43,141.38,0.80111956]
[1641807985975,6.00483843,141.43,141.38,0.80111956]
[1641807986376,4.00483843,141.42,141.38,0.80111956]
[1641807986576,12.76583843,141.42,141.38,0.80111956]
[1641807986875,14.76583843,141.42,141.38,0.80111956]
[1641807987276,4.00483843,141.41,141.38,0.80111956]
[1641807988177,4.00483843,141.41,141.38,2.80111956]
[1641807988378,4.00483843,141.41,141.38,0.80111956]
[1641807988577,4.00483843,141.44,141.39,2.80111956]
[1641807989076,4.00483843,141.44,141.4,0.80111956]
[1641807989979,6.00483843,141.44,141.38,2.80111956]
[1641807990680,4.00483843,141.43,141.39,0.80111956]
[1641807991082,4.00483843,141.43,141.39,2.80111956]
[1641807991481,4.00483843,141.43,141.4,0.80111956]
[1641807991882,4.00483843,141.43,141.38,0.80111956]
[1641807992383,6.00483843,141.43,141.38,2.80111956]
[1641807992586,6.00483843,141.43,141.38,0.80111956]
[1641807992785,4.00483843,141.42,141.39,0.80111956]
[1641807993585,13.01483843,141.42,141.39,0.80111956]
[1641807993786,11.01483843,141.42,141.39,0.80111956]
[1641807993986,18.67186876,141.42,141.39,0.80111956]
[1641807994188,4.00483843,141.41,141.38,0.80111956]
[1641807994687,4.00483843,141.41,141.37,2.0]
[1641807995088,4.00483843,141.41,141.38,0.80111956]
[1641807995689,4.00483843,141.41,141.38,2.80111956]
[1641807995892,4.00483843,141.41,141.38,2.0]
[1641807996290,4.00483843,141.41,141.35,1.768]
[1641807996491,4.00483843,141.41,141.4,2.0]
[1641807996890,4.00483843,141.41,141.38,1.766]
[1641807997290,4.00483843,141.44,141.39,0.80111956]
[1641807997494,4.00483843,141.44,141.39,2.80111956]
[1641807998094,4.00483843,141.44,141.4,0.80111956]
[1641807999996,4.00483843,141.44,141.38,0.80111956]
[1641808000397,4.00483843,141.44,141.41,0.80111956]
[1641808000599,6.00483843,141.44,141.41,0.80111956]
[1641808000800,6.00483843,141.44,141.39,0.80111956]
[1641808001197,4.00483843,141.43,141.39,0.80111956]
[1641808001697,6.00483843,141.43,141.39,0.80111956]
[1641808002098,4.00483843,141.42,141.39,0.80111956]
[1641808005104,4.00483843,141.42,141.37,0.80111956]
[1641808005503,4.00483843,141.42,141.37,2.80111956]
[1641808006102,4.00483843,141.42,141.38,0.80111956]
[1641808006508,4.00483843,141.42,141.38,7.04811956]
[1641808007005,4.00483843,141.42,141.39,0.80111956]
[1641808007207,4.00483843,141.42,141.39,2.56711956]
[1641808007607,4.00483843,141.42,141.41,2.0]
[1641808007807,2.0,141.43,141.41,7.926]
[1641808008008,2.0,141.43,141.42,2.0]
[1641808008509,0.0001,141.43,141.42,2.0]
[1641808008709,6.78497194,141.49,141.42,2.0]
[1641808008910,32.7835,141.5,141.43,1.766]
[1641808009109,4.00321541,141.48,141.45,2.0]
[1641808009308,4.00321541,141.48,141.45,9.576]
[1641808009508,4.00321541,141.49,141.46,1.09132215]
[1641808010910,4.00321541,141.49,141.44,3.09132215]
[1641808011309,6.00321541,141.49,141.45,1.09132215]
[1641808011811,4.00321541,141.48,141.41,1.09132215]
[1641808012010,4.00321541,141.48,141.41,36.10752215]
[1641808012211,4.00321541,141.48,141.46,1.09132215]
[1641808012613,4.00321541,141.48,141.44,2.0]
[1641808013015,4.00321541,141.48,141.45,1.09132215]
[1641808014714,4.00321541,141.49,141.45,1.09132215]
[1641808015115,2.0,141.48,141.45,1.09132215]
[1641808015314,8.342,141.48,141.45,1.09132215]
[1641808015514,4.00321541,141.47,141.44,1.09132215]
[1641808017215,4.00321541,141.47,141.44,3.09132215]
[1641808017715,4.00321541,141.47,141.45,1.09132215]
[1641808018117,4.00321541,141.47,141.45,7.27232215]
[1641808018316,4.00321541,141.47,141.45,9.27232215]
[1641808018616,4.00321541,141.47,141.46,1.09132215]
[1641808019019,4.00321541,141.47,141.46,3.09132215]
[1641808019216,4.00321541,141.49,141.46,12.41832215]
[1641808019616,4.00321541,141.47,141.46,12.41832215]
[1641808020018,4.00321541,141.48,141.46,11.327]
[1641808020418,4.00321541,141.49,141.46,11.327]
[1641808021218,4.00321541,141.49,141.46,9.327]
[1641808022018,4.00321541,141.49,141.44,32.515]
[1641808022220,2.0,141.48,141.4,1.766]
[1641808022419,17.4813803,141.49,141.41,33.5366]
[1641808022818,4.00321541,141.47,141.41,33.5366]
[1641808023218,4.00321541,141.48,141.41,33.5366]
[1641808023418,4.00321541,141.48,141.44,2.0]
[1641808029826,4.00321541,141.48,141.41,33.5366]
[1641808031128,4.00321541,141.48,141.44,2.0]
[1641808032829,4.00321541,141.48,141.41,33.5366]
[1641808033729,4.00321541,141.48,141.43,2.0]
[1641808033931,10.90121541,141.48,141.43,2.0]
[1641808034130,10.90121541,141.48,141.41,33.5366]
[1641808034331,4.00321541,141.47,141.41,33.5366]
[1641808034733,9.65831656,141.47,141.41,33.5366]
[1641808034933,9.65831656,141.47,141.44,2.0]
[1641808035432,4.00321541,141.46,141.42,1.09186049]
[1641808035636,4.00321541,141.46,141.45,1.09186049]
[1641808036133,4.00321541,141.46,141.42,1.09186049]
[1641808040243,4.00321541,141.46,141.43,2.0]
[1641808040942,4.00321541,141.46,141.44,1.09186049]
[1641808046751,5.65589154,141.45,141.44,1.09186049]
[1641808047152,9.65910695,141.45,141.42,1.09186049]
[1641808047552,4.00321541,141.44,141.42,1.09186049]
[1641808048552,4.00321541,141.44,141.42,3.09186049]
[1641808049254,4.00321541,141.44,141.43,1.09186049]
[1641808050956,4.00321541,141.44,141.42,1.09186049]
[1641808051158,4.00321541,141.44,141.43,2.39478328]
[1641808051859,4.00321541,141.44,141.43,3.48664377]
[1641808056668,4.00321541,141.44,141.43,11.92864377]
[1641808065873,6.00321541,141.44,141.43,11.92864377]
[1641808066979,6.00321541,141.44,141.43,13.92864377]
[1641808082294,15.00178901,141.48,141.43,17.92864377]
[1641808082498,15.00178901,141.48,141.44,1.766]
[1641808082696,73.29007884,141.51,141.47,2.0]
[1641808082897,40.00147884,141.51,141.47,10.416]
[1641808083197,38.00157884,141.51,141.5,2.0]
[1641808083397,38.00157884,141.51,141.5,10.24]
[1641808083799,15.31764908,141.52,141.5,10.24]
[1641808083998,4.1127,141.54,141.51,7.766]
[1641808084200,4.1127,141.54,141.53,2.0]
[1641808084499,60.00533046,141.59,141.53,15.042]
[1641808084698,60.00533046,141.59,141.54,5.766]
[1641808085400,60.00533046,141.59,141.55,1.13049904]
[1641808085601,60.00533046,141.59,141.58,2.0]
[1641808085803,60.00533046,141.59,141.58,10.62]
[1641808086604,60.00533046,141.59,141.58,11.75049904]
[1641808086903,60.00533046,141.59,141.58,9.75049904]
[1641808087304,20.86854078,141.59,141.58,9.75049904]
[1641808088104,20.86854078,141.59,141.58,13.75049904]
[1641808088304,20.27497717,141.66,141.58,15.51449904]
[1641808088504,20.27497717,141.66,141.59,5.764]
[1641808088903,20.27497717,141.66,141.6,1.13049904]
[1641808089403,20.27497717,141.66,141.62,4.0]
[1641808089606,20.27497717,141.66,141.63,1.764]
[1641808089806,20.27497717,141.66,141.63,2.89449904]
[1641808090207,20.27497717,141.66,141.63,1.13049904]
[1641808090407,20.27497717,141.66,141.61,5.764]
[1641808090608,20.27497717,141.66,141.61,1.764]
[1641808090808,0.236,141.59,141.56,4.0]
[1641808091007,8.338,141.59,141.57,1.765]
[1641808091209,8.338,141.59,141.55,5.764]
[1641808091406,8.338,141.59,141.55,1.764]
[1641808091407,6.574,141.59,141.55,1.764]
[1641808091608,6.574,141.59,141.55,5.764]
[1641808091808,6.338,141.59,141.55,5.764]
[1641808093308,6.338,141.59,141.56,4.0]
[1641808093508,6.338,141.59,141.56,10.36]
[1641808093707,6.338,141.59,141.57,4.0]
[1641808093909,34.3187,141.64,141.57,4.0]
[1641808094609,35.1871,141.65,141.56,10.36]
[1641808094809,35.1871,141.65,141.56,6.36]
[1641808095012,4.0,141.64,141.56,6.36]
[1641808095214,39.1871,141.65,141.56,6.36]
[1641808095510,2.0,141.59,141.56,6.36]
[1641808095910,2.0,141.59,141.56,10.36]
[1641808096511,2.0,141.59,141.56,6.36]
[1641808096711,2.0,141.59,141.56,10.36]
[1641808097712,2.0,141.59,141.56,6.36]
[1641808098813,3.99966157,141.58,141.55,5.764]
[1641808099113,3.99966157,141.58,141.57,4.0]
[1641808099713,2.0,141.59,141.57,4.0]
[1641808102719,3.99941034,141.58,141.57,4.0]
[1641808103119,2.0,141.59,141.57,4.0]
[1641808104422,25.92233289,141.66,141.58,5.764]
[1641808104622,20.27497717,141.66,141.59,4.0]
[1641808104822,3.99890423,141.65,141.61,4.0]
[1641808105022,3.99890423,141.65,141.62,1.764]
[1641808105224,1.99900423,141.65,141.62,1.764]
[1641808106325,1.99900423,141.65,141.61,1.764]
[1641808106726,1.99900423,141.65,141.63,2.34823446]
[1641808107226,1.99900423,141.65,141.6,2.34823446]
[1641808108229,1.99900423,141.65,141.59,2.34823446]
[1641808108529,1.99900423,141.65,141.61,2.34823446]
[1641808108730,3.99900423,141.65,141.61,2.34823446]
[1641808108933,3.99900423,141.65,141.59,2.34823446]
[1641808109131,3.99900423,141.65,141.59,6.34823446]
[1641808109330,1.99900423,141.64,141.59,6.34823446]
[1641808109832,3.99900423,141.65,141.6,2.34823446]
[1641808111932,3.99900423,141.65,141.59,2.34823446]
[1641808112332,3.99900423,141.65,141.61,2.34823446]
[1641808112935,3.99900423,141.65,141.59,2.34823446]
[1641808113836,3.99900423,141.65,141.6,4.0]
[1641808114035,3.99900423,141.65,141.61,1.764]
[1641808114236,3.99900423,141.65,141.61,6.81]
[1641808114636,3.99900423,141.65,141.62,2.34823446]
[1641808116037,2.58747238,141.64,141.62,2.34823446]
[1641808116538,1.99900423,141.63,141.57,51.25780489]
[1641808116837,1.99900423,141.63,141.58,1.764]
[1641808117240,1.99900423,141.63,141.59,2.34879266]
[1641808118540,2.58929093,141.62,141.59,2.34879266]
[1641808119041,1.99900423,141.61,141.59,2.34879266]
[1641808120445,1.99900423,141.63,141.59,2.34879266]
[1641808120845,1.99900423,141.6,141.59,2.34879266]
[1641808121243,1.99900423,141.63,141.59,2.34879266]
[1641808121645,2.58958977,141.62,141.59,2.34879266]
[1641808122148,1.99900423,141.61,141.59,2.34879266]
[1641808123553,4.0,141.61,141.55,14.91812414]
[1641808123750,9.64937667,141.61,141.55,14.91812414]
[1641808124651,2.58940558,141.6,141.55,14.91812414]
[1641808124850,6.5901019,141.6,141.56,2.09160397]
[1641808125050,10.5901019,141.6,141.56,2.09160397]
[1641808125250,4.00069632,141.59,141.56,2.09160397]
[1641808125550,6.5901019,141.59,141.56,2.09160397]
[1641808125752,15.8921019,141.59,141.56,2.09160397]
[1641808126150,13.30269632,141.59,141.56,2.09160397]
[1641808126351,4.00069632,141.58,141.56,2.09160397]
[1641808127953,4.00069632,141.59,141.56,2.09160397]
[1641808130154,4.00069632,141.59,141.54,2.09160397]
[1641808130655,4.00069632,141.59,141.55,2.09160397]
[1641808131054,4.00069632,141.59,141.56,2.09160397]
[1641808131454,4.00069632,141.59,141.57,2.09160397]
[1641808132056,4.00069632,141.59,141.57,6.002]
[1641808132457,4.00069632,141.59,141.58,1.85650014]
[1641808133658,4.00069632,141.59,141.58,3.62050014]
[1641808134958,2.0,141.6,141.58,3.62050014]
[1641808135657,2.0,141.6,141.59,5.85650014]
[1641808135857,10.21910297,141.63,141.59,14.67890847]
[1641808136056,9.12764375,141.63,141.61,4.0]
[1641808136257,7.12764375,141.63,141.62,1.764]
[1641808136857,11.12648419,141.63,141.62,3.62050014]
[1641808139764,13.12648419,141.63,141.62,3.62050014]
[1641808141066,13.12648419,141.63,141.62,1.85650014]
[1641808143168,13.12648419,141.63,141.61,1.85650014]
[1641808143570,3.99884044,141.62,141.61,1.85650014]
[1641808143776,3.99884044,141.62,141.61,5.85650014]
[1641808143971,3.99884044,141.62,141.61,1.85650014]
[1641808144671,3.99884044,141.62,141.6,1.85650014]
[1641808145071,3.99884044,141.62,141.61,1.85650014]
[1641808145873,3.99884044,141.62,141.56,33.0028]
[1641808145874,3.99884044,141.62,141.57,1.85650014]
[1641808150980,3.99884044,141.62,141.57,3.62050014]
[1641808151482,3.99884044,141.62,141.58,1.85650014]
[1641808152083,4.0,141.61,141.58,1.85650014]
[1641808152285,7.99884044,141.62,141.58,1.85650014]
[1641808152483,3.99884044,141.6,141.58,1.85650014]
[1641808152783,3.99884044,141.61,141.56,1.85650014]
[1641808153186,7.99884044,141.61,141.56,1.85650014]
[1641808153384,4.0,141.6,141.56,1.85650014]
[1641808153884,3.99884044,141.59,141.56,1.85650014]
[1641808155085,3.99884044,141.6,141.56,1.85650014]
[1641808155886,7.99884044,141.6,141.56,1.85650014]
[1641808156087,3.99884044,141.6,141.56,1.85650014]
[1641808156287,3.99884044,141.59,141.56,1.85650014]
[1641808156486,11.18484044,141.59,141.56,1.85650014]
[1641808156787,11.18484044,141.59,141.55,1.85650014]
[1641808157188,3.99884044,141.58,141.55,1.85650014]
[1641808158189,3.99884044,141.59,141.55,1.85650014]
[1641808160693,3.99884044,141.6,141.55,1.85650014]
[1641808162294,3.99884044,141.6,141.55,7.92950014]
[1641808162993,3.99884044,141.6,141.56,1.85650014]
[1641808163193,7.99884044,141.6,141.56,1.85650014]
[1641808163794,3.99884044,141.59,141.55,1.85650014]
[1641808164295,3.99884044,141.59,141.54,1.85650014]
[1641808164696,3.99884044,141.59,141.56,1.85650014]
[1641808165098,3.99884044,141.59,141.55,1.85650014]
[1641808165497,3.99884044,141.59,141.54,1.85650014]
[1641808166396,3.99884044,141.59,141.55,2.39400676]
[1641808166796,3.99884044,141.59,141.56,1.85650014]
[1641808170000,4.0,141.57,141.55,2.39400676]
[1641808170200,9.65132405,141.56,141.55,2.39400676]
[1641808170400,15.38532405,141.56,141.55,2.39400676]
[1641808171301,19.38596422,141.56,141.55,3.86075978]
[1641808173103,19.38596422,141.56,141.55,1.46675302]
[1641808173303,19.38596422,141.56,141.55,5.978e-05]
[1641808173805,19.38596422,141.56,141.5,32.6163]
[1641808174209,15.38532405,141.56,141.5,32.6163]
[1641808174606,4.00068529,141.55,141.51,1.15879268]
[1641808176507,4.00068529,141.55,141.52,1.766]
[1641808176707,4.00068529,141.58,141.52,10.258]
[1641808177107,4.00068529,141.58,141.53,1.15879268]
[1641808177506,4.00068529,141.59,141.53,1.15879268]
[1641808177708,4.00068529,141.59,141.54,1.766]
[1641808178508,4.00068529,141.59,141.55,1.15879268]
[1641808178709,4.00068529,141.59,141.55,8.91779268]
[1641808179209,4.00068529,141.59,141.56,1.15879268]
[1641808181515,4.00068529,141.59,141.54,1.15879268]
[1641808181716,4.00068529,141.59,141.55,1.764]
[1641808182414,4.00068529,141.59,141.56,1.15879268]
[1641808183218,4.00068529,141.59,141.54,1.15879268]
[1641808183418,4.00068529,141.59,141.55,1.764]
[1641808184319,4.00068529,141.59,141.56,1.15879268]
[1641808185321,4.00068529,141.59,141.57,1.764]
[1641808185922,6.00068529,141.59,141.58,1.15879268]
[1641808186722,6.00068529,141.59,141.56,1.15879268]
[1641808187121,4.00068529,141.58,141.56,1.15879268]
[1641808188125,4.00068529,141.58,141.55,1.15879268]
[1641808188322,4.00068529,141.58,141.55,2.92279268]
[1641808189023,4.00068529,141.58,141.56,1.15879268]
[1641808189725,4.00068529,141.58,141.56,9.29579268]
[1641808189924,4.00068529,141.58,141.56,8.137]